Workbook

Sheet DATA
A1: BIBLE CODE (I.E., NONSENSE) SIMULATOR
A2: Random generation of word patterns
A3: Bob Agnew, raagnew1@gmail.com, www.raagnew.com
A5: The macro SIM (button above, see View > Macros > View Macros) independently generates 30,000 random English letters
A6: using natural frequencies per http://en.wikipedia.org/wiki/Letter_frequency. It then tabulates all instances of the words
A7: "BIBLE" and "CODE," forward or backward from any starting point and any skip interval up to 29,999, allowing wrap. Finally,
A8: it searches for pairs that will appear in the same 20 x 20 matrix, properly positioned. The random numbers in any run are
A9: initially seeded against the clock so each run generates a new case. Patterns generated by this simulator are random.
A10: They obviously have no connection to the Bible, or any written text, and they certainly don’t represent embedded "codes."
L13: MATRIX
L14: =MIN(F27:G31) -> 2123 | M14: =L14+1 -> 2124 | N14: =M14+1 -> 2125 | O14: 2126 | P14: 2127 | Q14: 2128 | R14: 2129 | S14: 2130 | T14: 2131 | U14: 2132 | V14: 2133 | W14: 2134 | X14: 2135 | Y14: 2136 | Z14: 2137 | AA14: 2138 | AB14: 2139 | AC14: 2140 | AD14: 2141 | AE14: 2142
A15: Word 1 | B15: B | C15: I | D15: B | E15: L | F15: E
A16: Word 2 | B16: C | C16: O | D16: D | E16: E | K16: 1 | L16: T | M16: H | N16: H | O16: A | P16: B | Q16: E | R16: E | S16: E | T16: A | U16: E | V16: F | W16: T | X16: H | Y16: O | Z16: F | AA16: N | AB16: N | AC16: O | AD16: W | AE16: E | AG16: =L$14+($K16-1)*$G$24 -> 2123 | AH16: =M$14+($K16-1)*$G$24 -> 2124 | AI16: =N$14+($K16-1)*$G$24 -> 2125 | AJ16: =O$14+($K16-1)*$G$24 -> 2126 | AK16: =P$14+($K16-1)*$G$24 -> 2127 | AL16: =Q$14+($K16-1)*$G$24 -> 2128 | AM16: =R$14+($K16-1)*$G$24 -> 2129 | AN16: =S$14+($K16-1)*$G$24 -> 2130 | AO16: =T$14+($K16-1)*$G$24 -> 2131 | AP16: =U$14+($K16-1)*$G$24 -> 2132 | AQ16: =V$14+($K16-1)*$G$24 -> 2133 | AR16: =W$14+($K16-1)*$G$24 -> 2134 | AS16: =X$14+($K16-1)*$G$24 -> 2135 | AT16: =Y$14+($K16-1)*$G$24 -> 2136 | AU16: =Z$14+($K16-1)*$G$24 -> 2137 | AV16: =AA$14+($K16-1)*$G$24 -> 2138 | AW16: =AB$14+($K16-1)*$G$24 -> 2139 | AX16: =AC$14+($K16-1)*$G$24 -> 2140 | AY16: =AD$14+($K16-1)*$G$24 -> 2141 | AZ16: =AE$14+($K16-1)*$G$24 -> 2142
K17: 2 | L17: T | M17: C | N17: E | O17: Y | P17: E | Q17: T | R17: E | S17: R | T17: T | U17: L | V17: R | W17: T | X17: N | Y17: Y | Z17: E | AA17: W | AB17: G | AC17: B | AD17: G | AE17: L | AG17: 7085 | AH17: 7086 | AI17: 7087 | AJ17: 7088 | AK17: 7089 | AL17: 7090 | AM17: 7091 | AN17: 7092 | AO17: 7093 | AP17: 7094 | AQ17: 7095 | AR17: 7096 | AS17: 7097 | AT17: 7098 | AU17: 7099 | AV17: 7100 | AW17: 7101 | AX17: 7102 | AY17: 7103 | AZ17: 7104
A18: Entropy | B18: =-SUMPRODUCT(DISTN,LOG(DISTN,2)) -> 4.2 | C18: Note: The entropy of written English is much less, estimated at about 1.3. | K18: 3 | L18: B | M18: S | N18: N | O18: R | P18: S | Q18: E | R18: M | S18: Y | T18: R | U18: L | V18: T | W18: R | X18: E | Y18: H | Z18: O | AA18: I | AB18: R | AC18: D | AD18: R | AE18: E | AG18: 12047 | AH18: 12048 | AI18: 12049 | AJ18: 12050 | AK18: 12051 | AL18: 12052 | AM18: 12053 | AN18: 12054 | AO18: 12055 | AP18: 12056 | AQ18: 12057 | AR18: 12058 | AS18: 12059 | AT18: 12060 | AU18: 12061 | AV18: 12062 | AW18: 12063 | AX18: 12064 | AY18: 12065 | AZ18: 12066
K19: 4 | L19: I | M19: E | N19: S | O19: T | P19: A | Q19: E | R19: T | S19: C | T19: I | U19: A | V19: N | W19: A | X19: M | Y19: D | Z19: E | AA19: L | AB19: K | AC19: N | AD19: E | AE19: M | AG19: 17009 | AH19: 17010 | AI19: 17011 | AJ19: 17012 | AK19: 17013 | AL19: 17014 | AM19: 17015 | AN19: 17016 | AO19: 17017 | AP19: 17018 | AQ19: 17019 | AR19: 17020 | AS19: 17021 | AT19: 17022 | AU19: 17023 | AV19: 17024 | AW19: 17025 | AX19: 17026 | AY19: 17027 | AZ19: 17028
A20: Alphabet | B20: Distribution | F20: Result1 | H20: Result2 | K20: 5 | L20: B | M20: R | N20: C | O20: W | P20: I | Q20: H | R20: G | S20: I | T20: E | U20: Y | V20: S | W20: A | X20: L | Y20: D | Z20: N | AA20: E | AB20: E | AC20: Y | AD20: T | AE20: F | AG20: 21971 | AH20: 21972 | AI20: 21973 | AJ20: 21974 | AK20: 21975 | AL20: 21976 | AM20: 21977 | AN20: 21978 | AO20: 21979 | AP20: 21980 | AQ20: 21981 | AR20: 21982 | AS20: 21983 | AT20: 21984 | AU20: 21985 | AV20: 21986 | AW20: 21987 | AX20: 21988 | AY20: 21989 | AZ20: 21990
A21: A | B21: 8.167% | F21: Start | G21: Skip | H21: Start | I21: Skip | K21: 6 | L21: L | M21: D | N21: C | O21: S | P21: T | Q21: A | R21: E | S21: G | T21: D | U21: W | V21: T | W21: R | X21: E | Y21: G | Z21: N | AA21: D | AB21: C | AC21: B | AD21: S | AE21: I | AG21: 26933 | AH21: 26934 | AI21: 26935 | AJ21: 26936 | AK21: 26937 | AL21: 26938 | AM21: 26939 | AN21: 26940 | AO21: 26941 | AP21: 26942 | AQ21: 26943 | AR21: 26944 | AS21: 26945 | AT21: 26946 | AU21: 26947 | AV21: 26948 | AW21: 26949 | AX21: 26950 | AY21: 26951 | AZ21: 26952
A22: B | B22: 1.492% | F22: 12,047 | G22: 4,962 | H22: 21,973 | I22: 14,887 | K22: 7 | L22: E | M22: Y | N22: E | O22: H | P22: I | Q22: R | R22: D | S22: C | T22: T | U22: C | V22: I | W22: I | X22: S | Y22: A | Z22: R | AA22: L | AB22: R | AC22: T | AD22: O | AE22: A | AG22: 31895 | AH22: 31896 | AI22: 31897 | AJ22: 31898 | AK22: 31899 | AL22: 31900 | AM22: 31901 | AN22: 31902 | AO22: 31903 | AP22: 31904 | AQ22: 31905 | AR22: 31906 | AS22: 31907 | AT22: 31908 | AU22: 31909 | AV22: 31910 | AW22: 31911 | AX22: 31912 | AY22: 31913 | AZ22: 31914
A23: C | B23: 2.782% | K23: 8 | L23: O | M23: P | N23: H | O23: O | P23: N | Q23: D | R23: S | S23: E | T23: E | U23: N | V23: B | W23: Y | X23: M | Y23: E | Z23: P | AA23: D | AB23: H | AC23: Y | AD23: N | AE23: S | AG23: 36857 | AH23: 36858 | AI23: 36859 | AJ23: 36860 | AK23: 36861 | AL23: 36862 | AM23: 36863 | AN23: 36864 | AO23: 36865 | AP23: 36866 | AQ23: 36867 | AR23: 36868 | AS23: 36869 | AT23: 36870 | AU23: 36871 | AV23: 36872 | AW23: 36873 | AX23: 36874 | AY23: 36875 | AZ23: 36876
A24: D | B24: 4.253% | F24: Cycle | G24: =MIN(G22,I22) -> 4,962 | K24: 9 | L24: A | M24: H | N24: A | O24: I | P24: D | Q24: I | R24: E | S24: E | T24: U | U24: M | V24: T | W24: L | X24: T | Y24: T | Z24: W | AA24: M | AB24: T | AC24: U | AD24: A | AE24: D | AG24: 41819 | AH24: 41820 | AI24: 41821 | AJ24: 41822 | AK24: 41823 | AL24: 41824 | AM24: 41825 | AN24: 41826 | AO24: 41827 | AP24: 41828 | AQ24: 41829 | AR24: 41830 | AS24: 41831 | AT24: 41832 | AU24: 41833 | AV24: 41834 | AW24: 41835 | AX24: 41836 | AY24: 41837 | AZ24: 41838
A25: E | B25: 12.703% | K25: 10 | L25: D | M25: T | N25: H | O25: D | P25: N | Q25: T | R25: E | S25: R | T25: H | U25: H | V25: T | W25: R | X25: O | Y25: W | Z25: S | AA25: S | AB25: A | AC25: E | AD25: N | AE25: H | AG25: 46781 | AH25: 46782 | AI25: 46783 | AJ25: 46784 | AK25: 46785 | AL25: 46786 | AM25: 46787 | AN25: 46788 | AO25: 46789 | AP25: 46790 | AQ25: 46791 | AR25: 46792 | AS25: 46793 | AT25: 46794 | AU25: 46795 | AV25: 46796 | AW25: 46797 | AX25: 46798 | AY25: 46799 | AZ25: 46800
A26: F | B26: 2.228% | F26: Word 1 | G26: Word 2 | K26: 11 | L26: W | M26: C | N26: P | O26: S | P26: D | Q26: P | R26: T | S26: M | T26: Y | U26: D | V26: R | W26: O | X26: C | Y26: K | Z26: T | AA26: I | AB26: S | AC26: S | AD26: H | AE26: O | AG26: 51743 | AH26: 51744 | AI26: 51745 | AJ26: 51746 | AK26: 51747 | AL26: 51748 | AM26: 51749 | AN26: 51750 | AO26: 51751 | AP26: 51752 | AQ26: 51753 | AR26: 51754 | AS26: 51755 | AT26: 51756 | AU26: 51757 | AV26: 51758 | AW26: 51759 | AX26: 51760 | AY26: 51761 | AZ26: 51762
A27: G | B27: 2.015% | F27: =MOD($F$22+($AF27-1)*$G$22,$G$24) -> 2,123 | G27: =MOD($H$22+($AF27-1)*$I$22,$G$24) -> 2,125 | K27: 12 | L27: O | M27: E | N27: I | O27: L | P27: C | Q27: T | R27: S | S27: T | T27: G | U27: V | V27: T | W27: B | X27: A | Y27: I | Z27: S | AA27: B | AB27: L | AC27: E | AD27: R | AE27: R | AF27: 1 | AG27: 56705 | AH27: 56706 | AI27: 56707 | AJ27: 56708 | AK27: 56709 | AL27: 56710 | AM27: 56711 | AN27: 56712 | AO27: 56713 | AP27: 56714 | AQ27: 56715 | AR27: 56716 | AS27: 56717 | AT27: 56718 | AU27: 56719 | AV27: 56720 | AW27: 56721 | AX27: 56722 | AY27: 56723 | AZ27: 56724
A28: H | B28: 6.094% | F28: =MOD($F$22+($AF28-1)*$G$22,$G$24) -> 2,123 | G28: =MOD($H$22+($AF28-1)*$I$22,$G$24) -> 2,126 | K28: 13 | L28: C | M28: S | N28: H | O28: R | P28: A | Q28: D | R28: E | S28: W | T28: Y | U28: J | V28: C | W28: T | X28: P | Y28: E | Z28: F | AA28: V | AB28: R | AC28: O | AD28: T | AE28: I | AF28: 2 | AG28: 61667 | AH28: 61668 | AI28: 61669 | AJ28: 61670 | AK28: 61671 | AL28: 61672 | AM28: 61673 | AN28: 61674 | AO28: 61675 | AP28: 61676 | AQ28: 61677 | AR28: 61678 | AS28: 61679 | AT28: 61680 | AU28: 61681 | AV28: 61682 | AW28: 61683 | AX28: 61684 | AY28: 61685 | AZ28: 61686
A29: I | B29: 6.966% | F29: =MOD($F$22+($AF29-1)*$G$22,$G$24) -> 2,123 | G29: =MOD($H$22+($AF29-1)*$I$22,$G$24) -> 2,127 | K29: 14 | L29: C | M29: S | N29: N | O29: A | P29: V | Q29: E | R29: S | S29: H | T29: I | U29: Y | V29: D | W29: N | X29: E | Y29: E | Z29: F | AA29: I | AB29: S | AC29: E | AD29: O | AE29: O | AF29: 3 | AG29: 66629 | AH29: 66630 | AI29: 66631 | AJ29: 66632 | AK29: 66633 | AL29: 66634 | AM29: 66635 | AN29: 66636 | AO29: 66637 | AP29: 66638 | AQ29: 66639 | AR29: 66640 | AS29: 66641 | AT29: 66642 | AU29: 66643 | AV29: 66644 | AW29: 66645 | AX29: 66646 | AY29: 66647 | AZ29: 66648
A30: J | B30: 0.153% | F30: =MOD($F$22+($AF30-1)*$G$22,$G$24) -> 2,123 | G30: =MOD($H$22+($AF30-1)*$I$22,$G$24) -> 2,128 | K30: 15 | L30: N | M30: S | N30: I | O30: N | P30: O | Q30: M | R30: D | S30: D | T30: O | U30: U | V30: H | W30: I | X30: N | Y30: H | Z30: R | AA30: M | AB30: S | AC30: H | AD30: E | AE30: A | AF30: 4 | AG30: 71591 | AH30: 71592 | AI30: 71593 | AJ30: 71594 | AK30: 71595 | AL30: 71596 | AM30: 71597 | AN30: 71598 | AO30: 71599 | AP30: 71600 | AQ30: 71601 | AR30: 71602 | AS30: 71603 | AT30: 71604 | AU30: 71605 | AV30: 71606 | AW30: 71607 | AX30: 71608 | AY30: 71609 | AZ30: 71610
A31: K | B31: 0.772% | F31: =MOD($F$22+($AF31-1)*$G$22,$G$24) -> 2,123 | K31: 16 | L31: S | M31: F | N31: H | O31: A | P31: Y | Q31: E | R31: R | S31: U | T31: S | U31: R | V31: N | W31: L | X31: E | Y31: B | Z31: F | AA31: E | AB31: N | AC31: E | AD31: E | AE31: E | AF31: 5 | AG31: 76553 | AH31: 76554 | AI31: 76555 | AJ31: 76556 | AK31: 76557 | AL31: 76558 | AM31: 76559 | AN31: 76560 | AO31: 76561 | AP31: 76562 | AQ31: 76563 | AR31: 76564 | AS31: 76565 | AT31: 76566 | AU31: 76567 | AV31: 76568 | AW31: 76569 | AX31: 76570 | AY31: 76571 | AZ31: 76572
A32: L | B32: 4.025% | F32: =F22 -> 12,047 | G32: =H22 -> 21,973 | K32: 17 | L32: A | M32: B | N32: O | O32: A | P32: S | Q32: D | R32: S | S32: O | T32: E | U32: T | V32: E | W32: S | X32: P | Y32: P | Z32: E | AA32: T | AB32: I | AC32: W | AD32: C | AE32: H | AG32: 81515 | AH32: 81516 | AI32: 81517 | AJ32: 81518 | AK32: 81519 | AL32: 81520 | AM32: 81521 | AN32: 81522 | AO32: 81523 | AP32: 81524 | AQ32: 81525 | AR32: 81526 | AS32: 81527 | AT32: 81528 | AU32: 81529 | AV32: 81530 | AW32: 81531 | AX32: 81532 | AY32: 81533 | AZ32: 81534
A33: M | B33: 2.406% | F33: =F32+$G$22 -> 17,009 | G33: =G32+$I$22 -> 36,860 | K33: 18 | L33: T | M33: I | N33: H | O33: E | P33: O | Q33: H | R33: I | S33: P | T33: E | U33: I | V33: H | W33: I | X33: H | Y33: H | Z33: E | AA33: E | AB33: E | AC33: I | AD33: D | AE33: I | AG33: 86477 | AH33: 86478 | AI33: 86479 | AJ33: 86480 | AK33: 86481 | AL33: 86482 | AM33: 86483 | AN33: 86484 | AO33: 86485 | AP33: 86486 | AQ33: 86487 | AR33: 86488 | AS33: 86489 | AT33: 86490 | AU33: 86491 | AV33: 86492 | AW33: 86493 | AX33: 86494 | AY33: 86495 | AZ33: 86496
A34: N | B34: 6.749% | F34: =F33+$G$22 -> 21,971 | G34: =G33+$I$22 -> 51,747 | K34: 19 | L34: U | M34: A | N34: E | O34: R | P34: A | Q34: M | R34: S | S34: O | T34: E | U34: I | V34: D | W34: Y | X34: H | Y34: T | Z34: H | AA34: U | AB34: U | AC34: H | AD34: I | AE34: T | AG34: 91439 | AH34: 91440 | AI34: 91441 | AJ34: 91442 | AK34: 91443 | AL34: 91444 | AM34: 91445 | AN34: 91446 | AO34: 91447 | AP34: 91448 | AQ34: 91449 | AR34: 91450 | AS34: 91451 | AT34: 91452 | AU34: 91453 | AV34: 91454 | AW34: 91455 | AX34: 91456 | AY34: 91457 | AZ34: 91458
A35: O | B35: 7.507% | F35: =F34+$G$22 -> 26,933 | G35: =G34+$I$22 -> 66,634 | K35: 20 | L35: O | M35: E | N35: T | O35: U | P35: T | Q35: O | R35: Y | S35: G | T35: O | U35: S | V35: H | W35: A | X35: N | Y35: E | Z35: O | AA35: R | AB35: A | AC35: V | AD35: S | AE35: I | AG35: 96401 | AH35: 96402 | AI35: 96403 | AJ35: 96404 | AK35: 96405 | AL35: 96406 | AM35: 96407 | AN35: 96408 | AO35: 96409 | AP35: 96410 | AQ35: 96411 | AR35: 96412 | AS35: 96413 | AT35: 96414 | AU35: 96415 | AV35: 96416 | AW35: 96417 | AX35: 96418 | AY35: 96419 | AZ35: 96420
A36: P | B36: 1.929% | F36: =F35+$G$22 -> 31,895
A37: Q | B37: 0.095%
A38: R | B38: 5.987% | F38: Time In | G38: Time Out
A39: S | B39: 6.327% | F39: 12:12:25 | G39: 12:14:52
A40: T | B40: 9.056%
A41: U | B41: 2.758%
A42: V | B42: 0.978%
A43: W | B43: 2.360%
A44: X | B44: 0.150%
A45: Y | B45: 1.974%
A46: Z | B46: 0.074%
